Workbook

Sheet przedsiewziecia ver 1b
A3: Lp | C3: jednostka odpowiedzialna | D3: okres realizacji (w wierszu program/umowa) | F3: Klas. Budżet. | H3: łączne nakłady finansowe | I3: wydatki poniesione w latach poprzednich | J3: limity wydatków w poszczególnych latach (wszystkie lata) | AL3: Limit zobowiązań
D4: Od | E4: Do | F4: Dział | G4: Rozdz. | J4: 2016 | K4: 2017 | L4: 2018 | M4: 2021 | N4: 2021 | O4: 2022 | P4: 2023 | Q4: 2024 | R4: 2025 | S4: 2026 | T4: 2027 | U4: 2028 | V4: 2029 | W4: 2029 | X4: 2030 | Y4: 2031 | Z4: 2032 | AA4: 2033 | AB4: 2034 | AC4: 2035 | AD4: 2036 | AE4: 2037 | AF4: 2038 | AG4: 2039 | AH4: 2040 | AI4: 2041 | AJ4: 2042 | AK4: 2043
A5: 1 | C5: 3 | D5: 4 | E5: 5 | F5: 6 | G5: 7 | H5: 9 | I5: 10 | J5: 11 | K5: 12 | L5: 13 | M5: 17 | AL5: 18
B6: Przedsięwzięcia ogółem | H6: =H7+H8 -> 2872600 | I6: 110800 | J6: 847280 | K6: 1314520 | L6: 600000 | M6: 0 | N6: 0 | O6: 0 | P6: 0 | Q6: 0 | R6: 0 | S6: 0 | T6: 0 | U6: =+U7+U8 -> 0 | V6: =V7+V8 -> 0 | AL6: =SUM(J6:M6) -> 2761800
B7: - wydatki bieżące | H7: =H13+H39 -> 23800 | I7: =I13+I39 -> 15000 | J7: =+J13+J39 -> 3280 | K7: =K13+K39 -> 5520 | L7: 0 | M7: 0 | N7: 0 | O7: 0 | P7: 0 | Q7: 0 | R7: 0 | S7: 0 | T7: 0 | U7: 0 | V7: 0 | W7: =W13+W38+#REF!+#REF! ->  | X7: =X13+X39+#REF!+#REF! ->  | Y7: =Y13+Y39+#REF!+#REF! ->  | Z7: =Z13+Z39+#REF!+#REF! ->  | AA7: =AA13+AA39+#REF!+#REF! ->  | AB7: =AB13+AB39+#REF!+#REF! ->  | AC7: =AC13+AC39+#REF!+#REF! ->  | AD7: =AD13+AD39+#REF!+#REF! ->  | AE7: =AE13+AE39+#REF!+#REF! ->  | AF7: =AF13+AF39+#REF!+#REF! ->  | AG7: =AG13+AG39+#REF!+#REF! ->  | AH7: =AH13+AH39+#REF!+#REF! ->  | AI7: =AI13+AI39+#REF!+#REF! ->  | AJ7: =AJ13+AJ39+#REF!+#REF! ->  | AK7: =AK13+AK39+#REF!+#REF! ->  | AL7: =SUM(J7:M7) -> 8800
B8: - wydatki majątkowe | H8: =H19+H44 -> 2848800 | I8: 95800 | J8: 844000 | K8: 1309000 | L8: 600000 | M8: 0 | AL8: =SUM(J8:M8) -> 2753000
B9: 1) programy, projekty lub zadania (razem) | H9: =H10+H11 -> 2872600 | I9: 110800 | J9: 847280 | K9: 1314520 | L9: 600000 | M9: 0 | AL9: =SUM(AL10:AL11) -> 2761800
B10: - wydatki bieżące | H10: =H13+H39 -> 23800 | I10: 15000 | J10: 3280 | K10: 5520 | L10: 0 | M10: 0 | AL10: =SUM(J10:M10) -> 8800
B11: - wydatki majątkowe | H11: =H19+H44 -> 2848800 | I11: =I19+I44 -> 95800 | J11: =J19+J44 -> 844000 | K11: =K19+K44 -> 1309000 | L11: =L19+L44 -> 600000 | AL11: =SUM(J11:M11) -> 2753000
B12: a) programy, projekty lub zadania związane z programami realizowanymi z udziałem środków, o których mowa w art. 5 ust. 1 pkt 2 i 3, (razem) | H12: =H13+H19 -> 0 | I12: 0 | J12: 0 | K12: 0 | L12: 0 | M12: 0 | N12: =+N13+N16 -> 0 | AL12: =AL13+AL19 -> 0
B13: - wydatki bieżące | H13: =SUM(H14:H15) -> 0 | I13: 0 | J13: 0 | K13: 0 | L13: 0 | M13: 0 | N13: 0 | AL13: =SUM(AL14:AL15) -> 0
B16: - wydatki majątkowe | H16: =H17+H18+#REF!+#REF! ->  | I16: =I17+I18+#REF!+#REF! ->  | J16: =J17+J18+#REF!+#REF! ->  | K16: =K17+K18+#REF!+#REF! ->  | L16: =L18+#REF! -> 
AL18: =SUM(J18:AK18) -> 0
B19: - wydatki majątkowe | H19: =SUM(H20:H20) -> 0 | I19: =SUM(I20:I20) -> 0 | J19: =SUM(J20:J20) -> 0 | K19: =SUM(K20:K20) -> 0 | L19: 0 | AL19: =SUM(AL20:AL20) -> 0
B21: b) programy, projekty lub zadania związane z umowami partnerstwa publiczno-prywatnego; (razem)
B22: - wydatki bieżące
B23: program 1 ogółem | F23: x
B24: - wyszczególnienie wydatków na program wg klasyfikacji budżetowej
B25: - wyszczególnienie wydatków na program wg klasyfikacji budżetowej
B26: program 2 ogółem | F26: x
B27: - wyszczególnienie wydatków na program wg klasyfikacji budżetowej
B28: …..
B30: - wydatki majątkowe
B31: program 1 ogółem | F31: x
B32: - wyszczególnienie wydatków na program wg klasyfikacji budżetowej
B33: - wyszczególnienie wydatków na program wg klasyfikacji budżetowej
B34: program 2 ogółem | F34: x
B35: - wyszczególnienie wydatków na program wg klasyfikacji budżetowej
B36: …..
B38: c) programy, projekty lub zadania pozostałe (inne niż wymienione w lit.a i b) (razem) | H38: =H39+H44 -> 2872600 | I38: =I39+I44 -> 110800 | J38: =J39+J44 -> 847280 | K38: =K39+K44 -> 1314520 | L38: =L39+L44 -> 600000 | AL38: =AL39+AL44 -> 2761800
B39: - wydatki bieżące | H39: =SUM(H40:H43) -> 23800 | I39: =SUM(I40:I43) -> 15000 | J39: =SUM(J40:J43) -> 3280 | K39: =SUM(K40:K43) -> 5520 | L39: =SUM(L40:L43) -> 0 | AL39: =SUM(AL40:AL43) -> 8800
J40: 0 | K40: 0 | AL40: =SUM(J40:AK40) -> 0
AL41: =SUM(J41:AK41) -> 0
L42: 0 | AL42: =SUM(J42:AK42) -> 0
B43: Zwiększenie bezpieczeństwa przeciwpożarowego poprzez zakup wozu ratowniczo-gaśniczego z wyposażeniem dla Ochotniczej Straży Pożarnej w Brzezinach | C43: Urząd Miasta Brzeziny | D43: 2015 | E43: 2017 | F43: 754 | G43: 75412 | H43: =SUM(I43:M43) -> 23800 | I43: 15000 | J43: 3280 | K43: 5520 | L43: 0 | AL43: =SUM(J43:M43) -> 8800
B44: - wydatki majątkowe | H44: =SUM(H45:H55) -> 2848800 | I44: =SUM(I45:I55) -> 95800 | J44: =SUM(J45:J55) -> 844000 | K44: =SUM(K45:K55) -> 1309000 | L44: =SUM(L45:L55) -> 600000 | AL44: =SUM(AL45:AL55) -> 2753000
J45: 0 | K45: 0 | AL45: =SUM(J45:AK45) -> 0
B46: Przygotowanie terenów inwestycyjnych dla lokalizacji Stefy Inwestycyjnej w Brzezinach | C46: Gmina Miasto Brzeziny | D46: 2012 | E46: 2014 | F46: 710 | G46: 71095 | H46: 0 | I46: 0 | J46: 0 | K46: 0 | L46: 0 | AL46: 0
AL47: 0
AL48: 0
AL49: 0
AL50: 0
B53: Ekologiczna modernizacja źródeł ciepła w Brzezinach | C53: Urząd Miasta Brzeziny | D53: 2015 | E53: 2018 | F53: 400 | G53: 40001 | H53: =SUM(I53:M53) -> 1550000 | I53: 50000 | J53: 300000 | K53: 600000 | L53: 600000 | AL53: =SUM(J53:M53) -> 1500000
B54: Zwiększenie bezpieczeństwa przeciwpożarowego poprzez zakup wozu ratowniczo-gaśniczego z wyposażeniem dla Ochotniczej Straży Pożarnej w Brzezinach | C54: Urząd Miasta Brzeziny | D54: 2015 | E54: 2017 | F54: 754 | G54: 75412 | H54: =SUM(I54:M54) -> 176000 | I54: 0 | J54: 0 | K54: 176000 | L54: 0 | AL54: =SUM(J54:M54) -> 176000
B55: Ochrona dziedzictwa historyczno-przyrodniczo-kulturowego miasta poprzez rewaloryzację Parku Miejskiego w Brzezinach | C55: Urząd Miasta Brzeziny | D55: 2015 | E55: 2017 | F55: 900 | G55: 90004 | H55: =SUM(I55:M55) -> 1122800 | I55: 45800 | J55: 544000 | K55: 533000 | L55: 0 | AL55: =SUM(J55:M55) -> 1077000
L56: PRZEWODNICZĄCY RADY
L57: Grzegorz Kędzia

Sheet Arkusz1
